bitfinex/quotes_SOLUSD_20240705
["timestamp","ask_amount","ask_price","bid_price","bid_amount"]
[1720140532715,7.866,127.13,127.06,7.8701]
[1720140532926,39.23,127.2,127.11,7.867]
[1720140533121,39.23,127.2,127.02,3.515286]
[1720140533122,39.23,127.12,127.02,3.515286]
[1720140533306,39.23,127.12,127.01,0.1]
[1720140533509,6.6212,127.15,127.02,3.515286]
[1720140533708,39.23,127.16,127.08,7.8685]
[1720140534017,7.8652,127.15,127.06,7.8697]
[1720140534225,100.0,127.19,127.07,7.8693]
[1720140534397,100.0,127.19,127.07,19.673]
[1720140534599,7.8654,127.14,127.07,27.5421]
[1720140534798,58.8846,127.2,127.07,27.5421]
[1720140535020,58.8846,127.2,127.09,7.8682]
[1720140535225,7.8653,127.14,127.07,19.673]
[1720140535400,58.8846,127.2,127.07,19.673]
[1720140535795,0.1,127.39,127.2,6.1805]
[1720140536027,0.1,127.39,127.22,48.02]
[1720140536246,0.1,127.39,127.26,19.6444]
[1720140536525,100.0,127.34,127.23,3.50948383]
[1720140536700,100.0,127.32,127.13,6.1805]
[1720140536902,39.23,127.33,127.15,39.3233]
[1720140537100,4.53380885,127.36,127.24,7.8585]
[1720140537326,7.8537,127.33,127.24,7.8587]
[1720140537510,7.8542,127.32,127.23,19.6488]
[1720140537832,104.53380885,127.36,127.23,19.6488]
[1720140537833,7.8549,127.31,127.23,19.6488]
[1720140538143,139.16430885,127.36,127.19,19.655]
[1720140538427,39.23,127.31,127.2,3.51031154]
[1720140538631,7.8552,127.31,127.22,7.8601]
[1720140538800,7.8549,127.31,127.22,7.8601]
[1720140539229,7.8561,127.29,127.2,11.37181154]
[1720140539522,7.8573,127.27,127.2,3.51031154]
[1720140540045,0.17,127.26,127.2,3.51031154]
[1720140540353,8.0279,127.26,127.2,3.51031154]
[1720140540498,0.17,127.26,127.2,3.51031154]
[1720140540703,7.861,127.21,127.2,3.51031154]
[1720140540937,78.5039,127.32,127.2,3.51031154]
[1720140540938,39.2739,127.32,127.2,3.51031154]
[1720140541100,39.23,127.32,127.2,3.51031154]
[1720140541298,100.0,127.33,127.2,3.51031154]
[1720140541609,100.0,127.27,127.2,3.51031154]
[1720140541936,19.6439,127.27,127.2,3.51031154]
[1720140542230,7.861,127.21,127.2,3.51031154]
[1720140542606,8.031,127.21,127.2,3.51031154]
[1720140542930,39.4,127.21,127.07,19.6729]
[1720140543126,7.866,127.13,127.05,7.8708]
[1720140543331,19.6547,127.2,127.04,6.4185]
[1720140543626,100.17,127.19,127.06,19.6747]
[1720140543847,7.8657,127.14,127.05,7.8707]
[1720140544126,7.8657,127.14,127.04,6.4185]
[1720140544127,7.8644,127.16,127.07,7.8694]
[1720140544331,0.17,127.15,127.09,19.6697]
[1720140544832,0.17,127.16,127.04,6.4185]
[1720140545211,7.8653,127.15,127.06,7.8697]
[1720140545512,39.23,127.19,127.01,0.1]
[1720140545711,7.8654,127.14,127.07,19.6726]
[1720140545916,39.23,127.19,127.04,19.6787]
[1720140546139,145.0,127.18,127.02,7.8723]
[1720140546328,7.869,127.08,127.01,0.1]
[1720140546527,19.6631,127.15,127.01,0.1]
[1720140546724,45.0,127.14,127.01,0.1]
[1720140546927,7.8683,127.1,127.02,7.8727]
[1720140547137,3.52078692,127.09,127.01,0.1]
[1720140547432,0.17,127.08,127.01,0.1]
[1720140548248,7.8716,127.04,127.01,0.1]
[1720140548447,7.8722,127.03,127.01,0.1]
[1720140548738,3.69078692,127.02,127.01,0.1]
[1720140548957,3.52078692,127.02,127.01,0.1]
[1720140549430,43.12365766,127.11,127.01,0.1]
[1720140549740,7.871,127.05,127.01,0.1]
[1720140549945,23.36168692,127.1,127.01,0.1]
[1720140549946,7.8727,127.02,127.01,0.1]
[1720140550177,7.8752,126.98,126.97,0.8366737]
[1720140550357,0.17,126.98,126.97,0.8366737]
[1720140550520,7.8739,127.01,126.97,0.8366737]
[1720140550719,47.360849,127.04,126.97,0.8366737]
[1720140550720,3.52078692,126.98,126.97,0.8366737]
[1720140550918,3.69078692,126.98,126.97,0.8366737]
[1720140551428,11.56598692,126.98,126.97,0.8366737]
[1720140551647,3.69078692,126.98,126.97,0.8366737]
[1720140551942,11.56598692,126.98,126.97,0.8366737]
[1720140552643,11.56598692,126.98,126.97,7.37e-05]
[1720140553038,111.56598692,126.98,126.97,7.37e-05]
[1720140553434,19.6897,126.97,126.91,0.1]
[1720140553637,7.8789,126.92,126.91,0.1]
[1720140553935,0.17,126.92,126.91,0.1]
[1720140554744,3.52078692,126.98,126.91,0.1]
[1720140555426,3.5207033,126.97,126.91,0.1]
[1720140556234,3.5207033,126.97,126.96,7.8764]
[1720140556445,7.8727,127.02,126.95,19.6912]
[1720140556641,3.50397917,127.01,126.95,27.5679]
[1720140556852,3.50397917,127.01,126.97,19.6886]
[1720140557058,158.8944,127.14,127.01,7.8731]
[1720140557263,7.8697,127.07,127.0,7.8737]
[1720140557434,7.8733,127.02,126.93,396.3935]
[1720140557639,19.68,127.04,126.93,6.2935]
[1720140557948,39.3339,127.12,126.91,27.6779]
[1720140557949,7.8752,126.99,126.91,27.6779]
[1720140558145,27.80525708,127.05,126.91,19.7984]
[1720140558358,7.8757,126.98,126.91,19.7984]
[1720140558656,7.873,127.02,126.91,0.1]
[1720140558838,19.6755,127.07,126.95,7.877]
[1720140559030,7.8736,127.01,126.94,19.6936]
[1720140559229,19.6784,127.05,126.92,7.8788]
[1720140559452,19.6784,127.05,126.93,7.8782]
[1720140559663,100.0,127.04,126.91,27.6775]
[1720140559837,7.8763,126.97,126.91,0.1]
[1720140560197,7.8759,126.97,126.91,0.1]
[1720140560332,39.23,127.03,126.91,0.1]
[1720140560528,7.8752,126.98,126.91,0.1]
[1720140560759,7.8747,126.99,126.91,0.1]
[1720140560972,15.9973027,127.06,126.91,390.2]
[1720140561134,106.12,127.13,126.97,19.6887]
[1720140561328,106.12,127.13,127.0,7.8739]
[1720140561329,7.8697,127.07,127.0,7.8739]
[1720140561752,7.8697,127.07,126.99,27.56]
[1720140561956,133.9103355,127.13,126.99,19.6855]
[1720140561957,119.6689,127.11,126.99,19.6855]
[1720140562160,7.87,127.07,127.0,48.02]
[1720140562363,7.87,127.07,126.98,19.6872]
[1720140562539,7.8672,127.11,127.04,7.8714]
[1720140562735,3.52078692,127.14,127.04,7.8709]
[1720140562945,3.52078692,127.14,127.02,19.6817]
[1720140562946,7.8675,127.11,127.02,19.6817]
[1720140563136,100.0,127.13,126.97,396.375]
[1720140563337,8.12391348,127.16,127.01,7.8728]
[1720140563338,7.8684,127.09,127.01,7.8728]
[1720140563538,7.8684,127.09,126.97,6.275]
[1720140563539,7.8684,127.09,127.02,7.8727]
[1720140563740,7.8679,127.1,127.03,7.8719]
[1720140563975,8.12391348,127.16,127.02,19.6807]
[1720140564173,7.8666,127.12,127.05,7.8709]
[1720140564469,39.3306,127.13,126.98,390.1]
[1720140564659,100.0,127.12,126.97,6.275]
[1720140564855,7.872,127.04,126.97,6.275]
[1720140565062,7.872,127.04,126.97,7.8758]
[1720140565063,7.8715,127.04,126.97,7.8758]
[1720140565369,0.17,127.03,126.94,7.8776]
[1720140565568,7.8733,127.01,126.93,16.5723]
[1720140565775,0.17,127.0,126.94,7.8775]
[1720140565954,0.17,127.0,126.93,16.5723]
[1720140566149,7.8747,126.99,126.93,16.5723]
[1720140566351,0.17,127.0,126.92,19.697]
[1720140566352,0.17,127.0,126.94,7.8776]
[1720140566585,16.1372,127.11,126.91,54.2759]
[1720140566772,16.1372,127.11,126.95,7.8767]
[1720140566773,7.8725,127.03,126.95,7.8767]
[1720140567072,39.23,127.12,126.98,19.6872]
[1720140567073,19.6703,127.1,126.98,19.6872]
[1720140567371,19.6703,127.1,126.93,54.23]
[1720140567372,100.0,127.11,126.96,7.8764]
[1720140567698,7.8691,127.08,126.96,390.1]
[1720140567855,39.3306,127.13,126.97,20.0]
[1720140568050,7.8685,127.09,126.97,20.0]
[1720140568360,67.01561348,127.16,126.97,146.6282]
[1720140568554,7.8661,127.13,127.06,7.8702]
[1720140568752,7.8661,127.13,127.05,7.8707]
[1720140568963,27.77454013,127.19,127.03,6.1125]
[1720140569296,19.6598,127.17,127.06,19.6749]
[1720140569490,7.8661,127.13,127.06,19.6749]
[1720140569776,8.11834013,127.19,127.08,19.6713]
[1720140569963,42.6454,127.24,127.12,7.8665]
[1720140570165,6.0662,127.31,127.09,54.23]
[1720140570353,19.643,127.28,127.15,19.6614]
[1720140570761,7.8616,127.21,127.13,7.8654]
[1720140571050,78.5183,127.27,127.09,390.1]
[1720140571271,8.11596292,127.31,127.16,6.1796]
[1720140571477,8.11596292,127.31,127.22,7.8598]
[1720140571478,7.8557,127.3,127.22,7.8598]
[1720140571797,100.0,127.35,127.17,477.4357]
[1720140571958,100.0,127.35,127.24,7.8585]
[1720140572159,6.2009,127.37,127.24,7.8585]
[1720140572355,7.8567,127.28,127.2,7.8615]
[1720140572674,7.856,127.3,127.19,19.6555]
[1720140572879,7.8576,127.27,127.19,27.5176]
[1720140573062,119.6354,127.33,127.19,19.6555]
[1720140573258,0.17,127.28,127.16,42.4636]
[1720140573572,8.7927737,127.29,127.21,7.8604]
[1720140573894,7.8567,127.28,127.2,7.8616]
[1720140574188,7.8567,127.28,127.19,19.655]
[1720140574189,7.8581,127.26,127.19,19.655]
[1720140574379,0.9366737,127.29,127.16,22.8034]
[1720140574574,7.8589,127.25,127.17,7.8629]
[1720140574887,7.8579,127.26,127.18,7.8627]
[1720140575091,0.9366737,127.29,127.17,19.6574]
[1720140575267,7.8585,127.25,127.17,27.5207]
[1720140575590,0.17,127.28,127.17,19.6574]
[1720140575779,0.9366737,127.29,127.2,19.6532]
[1720140575980,0.9366737,127.29,127.17,39.315]
[1720140576192,0.9366737,127.29,127.16,45.4096]
[1720140576372,0.9366737,127.29,127.16,6.1796]
[1720140576866,0.9366737,127.29,127.17,0.17]
[1720140577061,0.9366737,127.29,127.26,7.8577]
[1720140577263,0.9366737,127.29,127.19,477.35]
[1720140577488,0.9366737,127.29,127.2,20.0]
[1720140577703,0.9366737,127.29,127.22,19.6504]
[1720140577861,0.9366737,127.29,127.28,7.8566]
[1720140578063,0.9366737,127.29,127.23,48.19]
[1720140578064,0.1,127.39,127.31,7.8546]
[1720140578264,0.1,127.39,127.27,19.6428]
[1720140578671,7.8512,127.37,127.29,7.8559]
[1720140578876,0.1,127.39,127.27,19.6428]
[1720140579089,7.8523,127.35,127.28,7.8564]
[1720140579288,7.8541,127.33,127.25,7.858]
[1720140579588,7.8544,127.32,127.24,27.5067]
[1720140579788,0.1,127.39,127.21,390.1]
[1720140579994,7.8522,127.36,127.28,7.8561]
[1720140580901,7.95,127.39,127.32,7.8541]
[1720140581117,7.95,127.39,127.25,39.2924]
[1720140581118,0.1,127.39,127.28,19.641]
[1720140581403,7.9504,127.39,127.31,7.8547]
[1720140581710,0.1,127.39,127.37,7.8509]
[1720140582008,0.1,127.39,127.38,7.8505]
[1720140582212,0.1,127.39,127.3,39.23]
[1720140582399,0.1,127.39,127.38,7.8505]
[1720140582578,0.1,127.39,127.31,390.1]
[1720140582917,0.1,127.39,127.33,19.6332]
[1720140583204,0.1,127.39,127.33,27.4866]
[1720140583398,0.1,127.39,127.33,19.6332]
[1720140583598,0.1,127.39,127.29,39.2797]
[1720140583776,0.1,127.39,127.33,7.853]
[1720140583982,0.1,127.39,127.32,27.4885]
[1720140584294,7.8511,127.37,127.3,7.8554]
[1720140584610,0.27,127.39,127.29,7.856]
[1720140584807,7.853,127.34,127.27,6.2333]
[1720140585114,7.8536,127.33,127.26,7.8578]
[1720140585407,7.8528,127.35,127.27,27.4993]
[1720140585612,0.1,127.39,127.27,19.6421]
[1720140585917,7.8522,127.36,127.27,19.6421]
[1720140586091,0.1,127.39,127.29,7.8556]
[1720140586405,0.1,127.39,127.27,19.6421]
[1720140586406,7.8525,127.35,127.27,7.8569]
[1720140586608,7.8525,127.35,127.28,7.8566]
[1720140586812,7.8532,127.34,127.27,27.4998]
[1720140587108,8.0236,127.33,127.25,7.858]
[1720140587410,7.8544,127.32,127.25,7.8583]
[1720140587701,7.8536,127.33,127.25,7.8584]
[1720140587918,7.8542,127.32,127.25,7.8584]
[1720140588075,0.1,127.39,127.24,87.3152]
[1720140588278,7.8507,127.38,127.29,19.6394]
[1720140588478,0.1,127.39,127.31,19.6362]
[1720140588683,0.1,127.39,127.32,7.854]
[1720140589192,7.9504,127.39,127.31,27.4909]
[1720140589379,7.9504,127.39,127.32,7.8541]
[1720140589575,0.1,127.39,127.32,7.8541]
[1720140589778,7.95,127.39,127.32,7.8541]
[1720140590011,7.95,127.39,127.31,19.6362]
[1720140590252,0.1,127.39,127.31,27.4909]
[1720140590423,0.1,127.39,127.29,7.8559]
[1720140590702,7.852,127.36,127.29,7.8559]
[1720140590921,7.8525,127.35,127.28,27.4978]
[1720140591089,0.17,127.37,127.28,19.6413]
[1720140591488,8.0213,127.37,127.29,7.8555]
[1720140591693,0.17,127.37,127.28,19.6413]
[1720140591898,7.8518,127.36,127.29,7.8559]
[1720140592205,8.0212,127.37,127.3,7.8552]
[1720140592404,0.17,127.37,127.28,27.4977]
[1720140592611,7.8528,127.35,127.28,27.4977]
[1720140592779,7.8518,127.36,127.28,27.4977]
[1720140593218,7.8518,127.36,127.29,7.8559]
[1720140593404,7.8529,127.35,127.28,19.6413]
[1720140593713,0.1,127.39,127.28,78.5127]
[1720140593900,0.1,127.39,127.31,7.8542]
[1720140593901,7.8509,127.38,127.31,7.8542]
[1720140594644,100.1,127.39,127.19,39.3087]
[1720140594836,7.855,127.31,127.23,27.5088]
[1720140595129,7.855,127.31,127.24,7.8588]
[1720140595308,0.17,127.3,127.24,7.8588]
[1720140595509,0.17,127.3,127.23,27.5087]
[1720140595935,0.17,127.3,127.19,6.13255978]
[1720140596110,0.17,127.3,127.18,429.33]
[1720140596111,19.8092,127.3,127.18,390.1]
[1720140596301,19.8092,127.3,127.19,19.6548]
[1720140596631,0.17,127.3,127.22,7.8601]
[1720140596827,7.8581,127.26,127.18,19.6565]
[1720140597125,0.17,127.3,127.19,7.8617]
[1720140597332,0.17,127.3,127.18,27.519]
[1720140597902,0.17,127.3,127.15,19.6614]
[1720140597903,39.4478,127.3,127.15,19.6614]
[1720140598133,7.8597,127.24,127.15,27.526]
[1720140598434,19.6446,127.27,127.12,19.666]
[1720140598435,0.17,127.23,127.12,19.666]
[1720140598604,7.8616,127.2,127.13,7.8654]
[1720140598805,78.5078,127.3,127.08,8.09732493]
[1720140598806,100.0,127.21,127.08,8.09732493]
[1720140599011,19.6562,127.19,127.03,12.68419942]
[1720140599236,7.8648,127.15,127.03,52.04279942]
[1720140599417,7.8654,127.14,127.07,19.6737]
[1720140599614,19.6562,127.19,127.04,7.8711]
[1720140599808,19.66,127.17,127.04,7.8711]
[1720140600008,7.8672,127.11,127.03,27.5515]
[1720140600312,0.17,127.16,127.05,19.6761]
[1720140600510,0.17,127.16,127.03,39.359]
[1720140600731,0.17,127.16,127.1,7.8677]
[1720140600937,0.17,127.16,127.07,7.8694]
[1720140600938,7.8646,127.16,127.07,7.8694]
[1720140601138,0.17,127.17,127.07,19.6737]
[1720140601308,0.17,127.17,127.09,7.8678]
[1720140601619,7.8643,127.16,127.09,19.6696]
[1720140601821,0.17,127.17,127.12,19.6663]
[1720140602034,8.034,127.17,127.08,7.8687]
[1720140602331,8.034,127.17,127.06,19.6754]
[1720140602332,0.17,127.17,127.06,19.6754]
[1720140602528,19.6569,127.19,127.06,19.6754]
[1720140602711,8.0328,127.18,127.11,7.8671]
[1720140602911,8.0328,127.18,127.1,7.8677]
[1720140603108,6.1964,127.22,127.1,19.668]
[1720140603348,100.0,127.21,127.04,390.1]
[1720140603519,100.0,127.21,127.02,15.0]
[1720140603520,19.6586,127.18,127.06,7.8701]
[1720140603718,7.8627,127.19,127.03,39.3601]
[1720140603924,7.8623,127.19,127.03,39.3601]
[1720140604236,7.863,127.18,127.1,27.5358]
[1720140604419,6.1964,127.22,127.1,19.6682]
[1720140604626,7.8626,127.19,127.1,19.6682]
[1720140604947,7.8626,127.19,127.11,7.8671]
[1720140605116,6.1964,127.22,127.1,19.6682]
[1720140605447,7.8628,127.19,127.11,7.8665]
[1720140605945,6.0923,127.28,127.11,39.3355]
[1720140606121,8.12231996,127.24,127.11,429.4355]
[1720140606313,8.12231996,127.24,127.16,19.66]
[1720140606623,6.0923,127.28,127.13,19.6645]
[1720140606938,6.0923,127.28,127.12,39.23]
[1720140607143,6.0923,127.28,127.16,19.6598]
[1720140607347,6.0923,127.28,127.13,47.28]
[1720140607663,6.0923,127.28,127.21,7.8607]
[1720140607812,13.9492,127.28,127.2,27.5143]
[1720140608015,7.8585,127.26,127.18,7.8623]
[1720140608208,19.6452,127.26,127.14,390.1]
[1720140608416,7.8612,127.21,127.13,7.8658]
[1720140608613,7.8603,127.23,127.14,7.8651]
[1720140608844,6.0923,127.28,127.08,429.33]
[1720140609144,6.0923,127.28,127.15,39.3227]
[1720140609316,16.1706,127.3,127.23,7.8597]
[1720140609513,16.1706,127.3,127.21,27.5128]
[1720140609514,24.0262,127.3,127.21,27.5128]
[1720140609715,16.1706,127.3,127.21,19.6524]
[1720140610022,16.0794,127.37,127.29,7.8554]
[1720140610415,8.13027029,127.37,127.3,7.8551]
[1720140610642,7.9502,127.39,127.32,7.8542]
[1720140610643,0.1,127.39,127.32,7.8542]
[1720140610845,0.1,127.39,127.29,19.6388]
[1720140611144,7.8505,127.38,127.3,7.8554]
[1720140611320,7.8518,127.36,127.29,19.6388]
[1720140611514,0.1,127.39,127.25,19.6449]
[1720140611723,0.1,127.39,127.23,125.8064]
[1720140611930,0.1,127.39,127.32,7.8538]
[1720140612137,0.1,127.39,127.27,101.5636]
[1720140612339,0.1,127.39,127.38,27.4768]
[1720140613648,0.8366737,127.42,127.41,27.4702]
[1720140615015,0.8366737,127.42,127.41,47.4702]
[1720140615216,0.1,127.49,127.41,47.4702]
[1720140615217,0.1,127.49,127.48,47.0661]
[1720140615444,0.1,127.59,127.54,47.28]
[1720140615616,0.1,127.69,127.59,100.0]
[1720140615813,0.1,127.69,127.68,7.832]
[1720140616019,0.1,127.79,127.78,7.8259]
[1720140616413,0.1,127.79,127.77,19.5664]
[1720140616816,0.1,127.79,127.62,16.5485]
[1720140617131,0.1,127.79,127.68,19.5797]
[1720140617460,0.1,127.79,127.78,7.8259]
[1720140617824,0.1,127.79,127.72,58.804]
[1720140618041,0.1,127.79,127.73,20.0]
[1720140618247,0.1,127.79,127.68,27.4118]
[1720140618424,7.8267,127.77,127.68,19.58]
[1720140618630,0.1,127.79,127.77,7.8263]
[1720140618946,0.1,127.79,127.78,39.23]
[1720140619121,0.14651868,127.89,127.79,74.6686]
[1720140619319,0.14651868,127.89,127.79,0.17]
[1720140619658,0.14651868,127.89,127.87,7.8201]
[1720140619820,0.14651868,127.89,127.88,20.0]
[1720140620016,0.14651868,127.89,127.82,39.23]
[1720140620240,0.14651868,127.89,127.81,19.5588]
[1720140620553,0.14651868,127.89,127.81,7.8237]
[1720140620749,0.14651868,127.89,127.76,39.1352]
[1720140620750,7.8198,127.88,127.8,19.5607]
[1720140620921,0.14651868,127.89,127.8,19.5607]
[1720140621444,0.14651868,127.89,127.8,27.3848]
[1720140621619,0.14651868,127.89,127.85,7.8215]
[1720140621955,0.14651868,127.89,127.83,19.5564]
[1720140622162,0.14651868,127.89,127.84,7.8218]
[1720140622336,0.14651868,127.89,127.85,7.8211]
[1720140622647,0.14651868,127.89,127.83,19.5564]
[1720140622828,0.14651868,127.89,127.81,7.8236]
[1720140623026,0.14651868,127.89,127.74,58.7994]
[1720140623241,0.14651868,127.89,127.74,39.23]
[1720140623446,7.8204,127.87,127.79,27.3878]
[1720140623748,0.14651868,127.89,127.75,19.5685]
[1720140623922,19.553,127.86,127.71,19.575]
[1720140624124,7.8233,127.83,127.74,7.8282]
[1720140624351,100.14651868,127.89,127.74,19.5695]
[1720140624540,100.0,127.86,127.69,19.5774]
[1720140624729,100.0,127.84,127.65,19.5837]
[1720140624933,39.1085,127.85,127.62,78.46]
[1720140625144,7.8247,127.81,127.72,7.8295]
[1720140625360,0.17,127.8,127.71,19.5751]
[1720140625530,0.17,127.8,127.67,19.5807]
[1720140625728,19.5642,127.79,127.59,6.4872]
[1720140625943,7.8291,127.73,127.6,39.23]
[1720140626164,19.5642,127.79,127.56,39.5486821]
[1720140626331,19.568,127.76,127.61,19.5896]
[1720140626665,7.8337,127.66,127.57,19.5961]
[1720140626837,39.23,127.72,127.6,7.8369]
[1720140627039,7.8326,127.67,127.58,7.8382]
[1720140627233,7.8333,127.66,127.57,19.5961]
[1720140627437,7.8339,127.65,127.57,19.5961]
[1720140627638,7.8339,127.65,127.56,8.1576821]
[1720140627639,119.5773,127.7,127.56,0.3186821]
[1720140627851,7.8337,127.66,127.56,0.3186821]
[1720140628056,23.09158692,127.75,127.56,0.3186821]
[1720140628227,3.52078692,127.75,127.65,19.5845]
[1720140628429,7.8297,127.72,127.63,7.8351]
[1720140628630,7.8296,127.72,127.64,7.8345]
[1720140628843,7.8277,127.76,127.61,39.1803]
[1720140629049,7.8277,127.76,127.67,19.5815]
[1720140629256,7.8264,127.78,127.67,19.5815]
[1720140629557,6.478,127.81,127.7,19.5771]
[1720140629745,19.5619,127.8,127.65,19.584]
[1720140630057,19.5619,127.8,127.63,39.23]
[1720140630238,7.829,127.73,127.64,7.8345]
[1720140630439,7.829,127.73,127.59,6.166]
[1720140630440,45.708,127.81,127.61,39.1806]
[1720140630649,7.8204,127.88,127.63,6.0491]
[1720140630853,0.6095642,127.92,127.82,39.23]
[1720140631035,8.288e-05,127.92,127.91,7.8179]
[1720140631237,0.1,127.99,127.88,39.23]
[1720140631439,0.1,127.99,127.95,19.5376]
[1720140631961,0.1,127.99,127.86,100.0]
[1720140632262,0.1,127.99,127.97,7.8142]
[1720140632431,0.9282463,128.06,128.05,7.8094]
[1720140632935,0.1,128.09,128.08,27.3266]
[1720140633142,0.1,128.09,128.08,47.3266]
[1720140633337,6.0649,128.26,128.15,19.5074]
[1720140633573,7.7974,128.25,128.14,7.8038]
[1720140633736,7.8028,128.16,128.05,7.8088]
[1720140633943,19.4995,128.21,128.01,86.51]
[1720140634249,0.04637654,128.28,128.17,7.8019]
[1720140634869,0.04637654,128.28,128.15,19.5069]
[1720140635158,0.04637654,128.28,128.19,27.3032]
[1720140635362,0.04637654,128.28,128.19,20.17]
[1720140635558,0.04637654,128.28,128.26,7.7964]
[1720140635757,0.9282463,128.34,128.33,7.7924]
[1720140636064,0.1,128.39,128.31,39.23]
[1720140636371,100.0,128.57,128.33,39.23]
[1720140636666,100.0,128.58,128.48,7.7833]
[1720140636870,7.7804,128.53,128.42,7.7864]
[1720140637044,0.1,128.59,128.34,59.4]
[1720140637045,100.0,128.56,128.34,59.23]
[1720140637247,0.1,128.59,128.34,59.23]
[1720140637450,0.1,128.59,128.48,19.4582]
[1720140637676,0.1,128.59,128.48,38.9137]
[1720140637840,0.1,128.59,128.51,38.83]
[1720140638041,0.1,128.59,128.57,7.7776]
[1720140638234,0.1,128.59,128.47,11.57349702]
[1720140638235,7.7781,128.57,128.47,11.57349702]
[1720140638458,7.7787,128.56,128.46,7.7843]
[1720140638765,0.1,128.59,128.35,100.0]
[1720140638967,19.4435,128.58,128.39,19.4707]
[1720140639181,19.4435,128.58,128.35,86.11]
[1720140639182,19.4431,128.58,128.38,19.472]
[1720140639347,0.1,128.59,128.41,38.83]
[1720140639678,0.1,128.59,128.48,19.4571]
[1720140639882,0.1,128.59,128.45,38.83]
[1720140640043,0.1,128.59,128.55,7.7786]
[1720140640239,7.8769,128.59,128.49,7.7826]
[1720140640439,0.1,128.59,128.49,7.7826]
[1720140640674,0.1,128.59,128.51,7.7811]
[1720140640844,0.1,128.59,128.52,7.7805]
[1720140641060,0.1,128.59,128.5,19.4549]
[1720140641262,0.1,128.59,128.47,7.7835]
[1720140641263,7.7774,128.58,128.47,7.7835]
[1720140641454,138.83,128.54,128.28,100.0]
[1720140641647,138.83,128.54,128.31,38.83]
[1720140641648,100.0,128.53,128.31,38.83]
[1720140641855,38.83,128.54,128.42,7.7868]
[1720140642050,15.0,128.56,128.44,7.7856]
[1720140642258,15.0,128.56,128.35,38.83]
[1720140642559,0.1,128.59,128.39,38.83]
[1720140642761,0.1,128.59,128.43,77.7599]
[1720140643058,0.1,128.59,128.5,19.4543]
[1720140643256,0.1,128.59,128.49,7.7824]
[1720140643577,0.1,128.59,128.47,7.7834]
[1720140643902,0.1,128.59,128.46,19.461]
[1720140644048,0.1,128.59,128.45,7.785]
[1720140644391,7.781,128.52,128.43,7.7858]
[1720140644543,58.2743,128.58,128.42,19.4669]
[1720140644741,0.1,128.59,128.45,19.4613]
[1720140644981,0.17,128.57,128.45,19.4613]
[1720140645342,7.7817,128.51,128.41,19.4681]
[1720140645543,7.7828,128.49,128.37,19.474]
[1720140645743,7.7828,128.49,128.34,53.83]
[1720140645744,7.7816,128.51,128.41,7.7872]
[1720140645944,19.4502,128.54,128.34,38.83]
[1720140646256,38.83,128.51,128.38,7.7893]
[1720140646457,38.83,128.51,128.4,19.4703]
[1720140646654,0.17,128.5,128.4,19.4703]
[1720140646855,7.7834,128.48,128.4,19.4703]
[1720140647050,19.4502,128.54,128.4,19.4703]
[1720140647051,6.1992,128.55,128.43,7.7863]
[1720140647277,0.1,128.59,128.38,62.28]